bitfinex/quotes_ETHUSD_20230111
["timestamp","ask_amount","ask_price","bid_price","bid_amount"]
[1673476610171,1e-08,1349.5,1349.2,26.78547283]
[1673476611054,9.65605672,1349.5,1349.2,19.37395283]
[1673476611282,7.41019001,1349.5,1349.2,26.78574283]
[1673476612130,1e-08,1349.5,1349.2,34.19753283]
[1673476612354,2.24597412,1349.5,1349.2,34.19753283]
[1673476613148,9.65616412,1349.5,1349.2,34.19753283]
[1673476613415,1e-08,1349.5,1349.2,34.19753283]
[1673476613722,2.24599728,1349.5,1349.2,34.19753283]
[1673476616968,9.65615728,1349.5,1349.2,34.19753283]
[1673476617147,7.40677235,1349.5,1349.2,34.19753283]
[1673476617359,7.41016,1349.5,1349.2,34.19753283]
[1673476618243,15.44144,1349.6,1349.2,34.19753283]
[1673476618560,2.24610088,1349.5,1349.2,34.19753283]
[1673476619276,2.24610088,1349.5,1349.2,26.78574283]
[1673476619489,9.65625088,1349.5,1349.2,19.37395283]
[1673476619820,7.41015,1349.5,1349.2,26.78574283]
[1673476621470,15.44144,1349.6,1349.2,34.19753283]
[1673476621659,2.24607282,1349.5,1349.2,34.19753283]
[1673476621870,2.24607282,1349.5,1349.3,3.41975328]
[1673476622126,2.24607282,1349.5,1349.2,34.19753283]
[1673476624426,0.5558,1349.6,1349.2,34.19753283]
[1673476624605,27.44655654,1349.7,1349.2,34.19753283]
[1673476624815,2.24569039,1349.6,1349.2,34.19753283]
[1673476628383,2.24569039,1349.6,1349.2,38.55119347]
[1673476628596,2.24569039,1349.6,1349.3,3.85511935]
[1673476628909,2.24569039,1349.6,1349.4,14.8214]
[1673476629126,2.24569039,1349.6,1349.4,14.88891503]
[1673476632166,2.24569039,1349.6,1349.4,22.29961503]
[1673476632959,2.24569039,1349.6,1349.5,26.02811064]
[1673476633126,2.24569039,1349.6,1349.5,28.70518824]
[1673476634820,0.15665654,1349.7,1349.5,28.70518824]
[1673476635420,0.15865654,1349.7,1349.5,28.70218824]
[1673476635676,0.15665654,1349.7,1349.5,28.70518824]
[1673476638009,0.15865654,1349.7,1349.5,28.70218824]
[1673476638158,0.15665654,1349.7,1349.5,28.70518824]
[1673476638365,0.15665654,1349.7,1349.5,21.29503824]
[1673476639676,0.15665654,1349.7,1349.5,21.2918895]
[1673476639840,0.15665654,1349.7,1349.5,10.0872276]
[1673476640052,0.15665654,1349.7,1349.5,7.47766503]
[1673476640267,0.15665654,1349.7,1349.5,14.88781503]
[1673476640620,0.15665654,1349.7,1349.5,26.09562567]
[1673476642778,0.15665654,1349.7,1349.5,27.73562567]
[1673476642983,0.15665654,1349.7,1349.6,26.02646064]
[1673476643242,0.15665654,1349.7,1349.6,26.09397567]
[1673476643436,0.15665654,1349.7,1349.6,29.60838824]
[1673476644918,0.15865654,1349.7,1349.6,29.60538824]
[1673476645105,0.15665654,1349.7,1349.6,29.60838824]
[1673476646801,0.15665654,1349.7,1349.6,7.37958824]
[1673476646984,0.15665654,1349.7,1349.6,3.86517567]
[1673476647188,0.15665654,1349.7,1349.6,3.79766064]
[1673476647450,0.15665654,1349.7,1349.5,9.11748503]
[1673476647665,0.15665654,1349.7,1349.6,22.2288]
[1673476647972,0.15665654,1349.7,1349.6,22.29631503]
[1673476649922,0.15665654,1349.7,1349.6,29.44434824]
[1673476650183,0.15665654,1349.7,1349.6,29.68621277]
[1673476650375,0.15665654,1349.7,1349.6,29.45621277]
[1673476656403,0.15137839,1349.8,1349.6,29.45621277]
[1673476658489,0.15137839,1349.8,1349.7,26.02481064]
[1673476658725,0.15137839,1349.8,1349.7,27.89088267]
[1673476661627,0.15137839,1349.8,1349.7,29.54288267]
[1673476661855,0.15137839,1349.8,1349.7,29.77288267]
[1673476662504,0.52682992,1350.0,1349.8,0.15137839]
[1673476662716,0.52682992,1350.0,1349.9,35.30346064]
[1673476662877,0.52682992,1350.0,1349.9,38.93337598]
[1673476663297,0.15562691,1350.2,1349.9,45.0041826]
[1673476663541,0.15562691,1350.2,1350.1,20.26336064]
[1673476663749,0.15562691,1350.2,1350.1,24.28888099]
[1673476663927,0.15562691,1350.2,1350.1,31.69090357]
[1673476664155,0.15562691,1350.2,1350.1,27.28888099]
[1673476664440,0.1711252,1350.4,1350.1,34.09440497]
[1673476664561,0.1711252,1350.4,1350.3,5.44966064]
[1673476664929,0.1711252,1350.4,1350.3,36.59914399]
[1673476665345,5.2e-06,1350.4,1350.3,36.59914399]
[1673476665716,0.18632672,1350.5,1350.3,42.65316657]
[1673476665926,1.03042059,1350.7,1350.4,13.37668322]
[1673476666137,5.9e-07,1350.7,1350.6,3.79766064]
[1673476666342,0.8456433,1351.3,1350.6,23.77978336]
[1673476666608,0.8456433,1351.3,1351.0,29.60724]
[1673476666767,0.8456433,1351.3,1351.2,25.48846]
[1673476666978,0.8456433,1351.3,1351.2,29.35363567]
[1673476667220,0.056,1351.7,1351.2,28.4913386]
[1673476667445,0.9116433,1352.0,1351.3,7.58276064]
[1673476667661,0.8456433,1352.0,1351.4,11.19725064]
[1673476667850,0.8456433,1352.0,1351.5,12.84737064]
[1673476668022,0.8456433,1352.0,1351.5,12.91488567]
[1673476668023,0.63946433,1351.9,1351.5,12.91488567]
[1673476668237,0.58946433,1351.9,1351.5,9.11722503]
[1673476668452,1.5971447,1352.0,1351.7,5.44966064]
[1673476668453,0.8456433,1352.0,1351.7,5.44966064]
[1673476668692,0.8456433,1352.0,1351.7,0.06751503]
[1673476668911,0.8456433,1352.0,1351.6,7.46608503]
[1673476669077,0.5549,1351.9,1351.6,14.86465503]
[1673476669432,0.69495433,1351.9,1351.6,18.66237567]
[1673476669748,0.69495433,1351.9,1351.6,20.31337567]
[1673476670139,0.5549,1351.9,1351.8,7.39754]
[1673476670342,3.8456433,1352.0,1351.8,3.86517567]
[1673476670343,0.8456433,1352.0,1351.8,3.86517567]
[1673476670548,0.8456433,1352.0,1351.8,18.59268064]
[1673476670760,0.8456433,1352.0,1351.9,3.79766064]
[1673476670988,0.8456433,1352.0,1351.8,0.06751503]
[1673476671209,0.93020763,1352.0,1351.8,3.79766064]
[1673476671418,0.93020763,1352.0,1351.7,16.51563503]
[1673476671628,0.93020763,1352.0,1351.8,11.19520064]
[1673476672015,0.93020763,1352.0,1351.8,11.26271567]
[1673476672173,0.93020763,1352.0,1351.8,0.06751503]
[1673476672389,0.8456433,1352.0,1351.9,3.79766064]
[1673476672553,0.8456433,1352.0,1351.8,16.49708]
[1673476672759,0.8456433,1352.0,1351.8,16.51459503]
[1673476672970,0.8456433,1352.0,1351.8,20.31225567]
[1673476673211,0.8456433,1352.0,1351.9,3.79766064]
[1673476673439,0.93020763,1352.0,1351.8,1.71951503]
[1673476673600,0.93020763,1352.0,1351.8,23.84356]
[1673476673810,0.93020763,1352.0,1351.8,23.91107503]
[1673476674017,0.93020763,1352.0,1351.8,27.70873567]
[1673476674267,0.93020763,1352.0,1351.9,3.79766064]
[1673476674268,0.8456433,1352.0,1351.9,3.79766064]
[1673476674487,0.8456433,1352.0,1351.9,18.59164064]
[1673476674701,0.8456433,1352.0,1351.9,0.06751503]
[1673476674864,0.8456433,1352.0,1351.9,7.39699]
[1673476675076,0.8456433,1352.0,1351.9,7.46450503]
[1673476675488,0.93020763,1352.0,1351.9,0.06751503]
[1673476675733,0.93020763,1352.0,1351.8,0.06751503]
[1673476675946,0.93020763,1352.0,1351.6,7.39855]
[1673476676137,4.48510763,1352.0,1351.6,14.86434503]
[1673476676349,3.79766064,1351.9,1351.6,0.06751503]
[1673476676557,3.5549,1351.8,1351.3,7.40003]
[1673476676804,3.5549,1351.8,1351.3,1.71951503]
[1673476677120,18.35007,1351.8,1351.3,1.652]
[1673476677278,10.95244,1351.8,1351.3,1.652]
[1673476677482,1.095244,1351.7,1351.3,1.652]
[1673476677908,15.891834,1351.7,1351.2,1.71551503]
[1673476678131,15.891834,1351.7,1351.2,9.04847]
[1673476678132,1.095244,1351.7,1351.2,9.04847]
[1673476678372,1.095244,1351.7,1351.2,9.11598503]
[1673476678584,0.1095244,1351.6,1351.2,9.11598503]
[1673476680006,7.5082244,1351.6,1351.2,9.11598503]
[1673476680267,7.5082244,1351.6,1351.2,1.71551503]
[1673476680443,0.1095244,1351.6,1351.2,9.04874]
[1673476680655,0.1095244,1351.6,1351.2,9.11625503]
[1673476681065,7.5082444,1351.6,1351.2,1.71551503]
[1673476681397,0.1095244,1351.6,1351.2,9.04881]
[1673476681585,0.1095244,1351.6,1351.2,9.11632503]
[1673476681796,7.5082444,1351.6,1351.2,9.11632503]
[1673476683055,0.75082444,1351.5,1351.2,9.11632503]
[1673476683265,0.1755244,1351.6,1351.2,27.71562567]
[1673476683523,1.095244,1351.7,1351.2,27.71562567]
[1673476683770,8.493344,1351.7,1351.2,27.71562567]
[1673476683918,8.493364,1351.7,1351.2,12.91398567]
[1673476684105,15.891484,1351.7,1351.2,12.91398567]
[1673476684316,8.493364,1351.7,1351.2,9.11632503]
[1673476684569,0.8493364,1351.6,1351.2,9.67152503]
[1673476684976,0.8493364,1351.6,1351.2,17.07234503]
[1673476685296,0.8493364,1351.6,1351.2,20.87000567]
[1673476685476,0.8493364,1351.6,1351.2,20.31480567]
[1673476685889,15.6466464,1351.6,1351.2,0.06751503]
[1673476686140,1.56466464,1351.5,1351.1,9.60826]
[1673476686365,1.56466464,1351.5,1351.2,7.40061]
[1673476686576,1.56466464,1351.5,1351.2,7.46812503]
[1673476687047,1.56466464,1351.5,1351.2,0.06751503]
[1673476687260,1.56466464,1351.5,1351.1,9.60814]
[1673476687261,8.96398464,1351.5,1351.1,9.60814]
[1673476687623,1.56466464,1351.5,1351.1,25.61029053]
[1673476688408,0.8493364,1351.6,1351.1,25.61029053]
[1673476689832,9.048364,1351.7,1351.3,14.80017]
[1673476690040,9.048364,1351.7,1351.3,14.86768503]
[1673476690350,9.048364,1351.7,1351.3,7.46751503]
[1673476690735,16.446484,1351.7,1351.3,7.46751503]
[1673476690953,1.6446484,1351.6,1351.3,7.46751503]
[1673476691401,1.6446484,1351.6,1351.3,14.86779503]
[1673476692102,9.0434284,1351.6,1351.3,0.06751503]
[1673476692314,9.0454284,1351.6,1351.2,9.04438]
[1673476692662,9.0434284,1351.6,1351.3,7.40023]
[1673476692875,9.0434284,1351.6,1351.3,7.46774503]
[1673476693245,1.6446484,1351.6,1351.3,22.26830503]
[1673476693456,1.095244,1351.7,1351.3,22.26830503]
[1673476694701,1.095244,1351.7,1351.3,0.06751503]
[1673476694702,23.290024,1351.7,1351.3,0.06751503]
[1673476694979,23.290024,1351.7,1351.2,9.32609503]
[1673476695286,8.493334,1351.7,1351.2,24.12773503]
[1673476695501,15.891524,1351.7,1351.2,24.12773503]
[1673476695711,8.9878224,1351.6,1351.2,24.12773503]
[1673476696038,1.5891524,1351.6,1351.2,24.12773503]
[1673476696189,8.9878324,1351.6,1351.2,24.12773503]
[1673476696546,8.9878324,1351.6,1351.2,16.72691503]
[1673476696547,15.28456903,1351.6,1351.2,16.72691503]
[1673476697149,7.88588903,1351.6,1351.2,24.12773503]
[1673476697374,7.88588903,1351.6,1351.2,23.57253503]
[1673476697586,7.88588903,1351.6,1351.2,26.83863508]
[1673476698926,0.48720903,1351.6,1351.2,26.83863508]
[1673476699136,7.88593903,1351.6,1351.2,26.83863508]
[1673476699797,0.48720903,1351.6,1351.2,26.83863508]
[1673476700007,1.716244,1351.7,1351.3,1.305]
[1673476700181,1.650244,1351.7,1351.4,22.19886]
[1673476700391,1.650244,1351.7,1351.4,22.26637503]
[1673476700601,1.095244,1351.7,1351.4,22.26637503]
[1673476702522,7.5082344,1351.6,1351.4,0.06751503]
[1673476702808,14.9072344,1351.6,1351.3,7.40013]
[1673476703021,14.9072344,1351.6,1351.3,7.46764503]
[1673476703230,14.62902945,1351.6,1351.3,7.46764503]
[1673476703492,1.68069946,1351.6,1351.3,14.86792503]
[1673476703802,24.20536464,1351.7,1351.3,14.86792503]
[1673476704022,3.6209,1351.8,1351.4,3.79766064]
[1673476704173,0.066,1351.9,1351.5,1.312]
[1673476704387,7.39755,1351.8,1351.5,1.312]
[1673476705126,7.46315,1351.9,1351.5,1.312]
[1673476705353,2.23847149,1351.8,1351.5,7.39905]
[1673476705537,2.23847149,1351.8,1351.5,7.46656503]
[1673476706233,2.23847149,1351.8,1351.5,0.06751503]
[1673476706415,2.23847149,1351.8,1351.4,1.8661]
[1673476706416,9.63608149,1351.8,1351.4,1.311]
[1673476706591,7.39761,1351.8,1351.4,1.311]
[1673476706801,2.23852363,1351.7,1351.4,1.311]
[1673476707249,9.63663363,1351.7,1351.4,1.311]
[1673476707464,7.39811,1351.7,1351.4,1.311]
[1673476707750,0.066,1351.8,1351.5,3.79766064]
[1673476707960,3.0,1351.9,1351.6,17.94541148]
[1673476708204,3.0,1351.9,1351.6,1.37951503]
[1673476708205,0.39116433,1351.9,1351.6,1.37951503]
[1673476708414,0.94606433,1351.9,1351.6,1.312]
[1673476708627,22.58259433,1351.9,1351.6,1.312]
[1673476708955,7.39773,1351.8,1351.6,1.312]
[1673476709359,15.25137433,1351.9,1351.6,1.312]
[1673476709573,15.18537433,1351.9,1351.6,1.312]
[1673476709959,3.75667956,1351.8,1351.5,1.37751503]
[1673476710204,8.91625743,1351.8,1351.5,1.31]
[1673476710489,1.51853743,1351.8,1351.5,8.70918]
[1673476710701,1.51853743,1351.8,1351.5,8.77669503]
[1673476710915,8.91614743,1351.8,1351.5,1.37751503]
[1673476711135,16.31375743,1351.8,1351.5,1.31]
[1673476711369,8.91614743,1351.8,1351.5,8.70915]
[1673476711606,8.91607743,1351.8,1351.5,1.37751503]
[1673476711911,8.91607743,1351.8,1351.5,8.70917]
[1673476712128,8.91607743,1351.8,1351.5,1.37751503]
[1673476712349,0.89160774,1351.7,1351.4,35.51680146]
[1673476712648,5.38219807,1351.8,1351.4,23.57707503]
[1673476712865,2.23849625,1351.7,1351.4,23.57707503]
[1673476714093,2.23849625,1351.7,1351.4,16.17734503]
[1673476714295,9.63668625,1351.7,1351.4,8.77788503]
[1673476714505,22.19457,1351.7,1351.4,0.06751503]
[1673476714734,22.19457,1351.7,1351.3,0.06751503]
[1673476714735,22.19754,1351.5,1351.3,0.06751503]
[1673476714964,22.19754,1351.5,1351.2,2.40157243]
[1673476715175,22.19754,1351.5,1351.2,1.303]
[1673476715385,27.482107,1351.6,1351.2,1.303]
[1673476715546,27.416107,1351.6,1351.2,8.70371]
[1673476715756,2.7416107,1351.5,1351.2,8.77122503]
[1673476716007,2.7416107,1351.5,1351.2,16.17204503]
[1673476716441,3.2967107,1351.5,1351.2,16.17204503]
[1673476716755,0.5551,1351.5,1351.2,23.57286503]
[1673476717696,20.638057,1351.6,1351.2,23.57286503]
[1673476718012,5.774457,1351.6,1351.2,23.57286503]
[1673476718393,13.173107,1351.6,1351.2,23.57286503]
[1673476718611,5.774457,1351.6,1351.2,23.57286503]
[1673476719225,4.45,1351.4,1351.2,0.06751503]
[1673476719468,8.24766064,1351.4,1351.2,7.40082]
[1673476719657,8.24766064,1351.4,1351.2,7.46833503]
[1673476720009,8.24766064,1351.4,1351.2,0.06751503]
[1673476720168,8.24766064,1351.4,1351.1,7.46836503]
[1673476720380,11.35661727,1351.4,1351.1,7.46836503]
[1673476721425,11.35661727,1351.4,1351.1,14.86973503]
[1673476721639,8.24766064,1351.4,1351.1,14.86973503]
[1673476721895,15.64739064,1351.4,1351.1,7.46836503]
[1673476722329,15.64739064,1351.4,1351.1,7.46885503]
[1673476722628,8.24766064,1351.4,1351.1,14.87022503]
[1673476722843,5.0934457,1351.5,1351.1,22.27159503]
[1673476723007,3.0,1351.4,1351.1,22.27159503]
[1673476724496,3.0,1351.4,1351.1,22.26926259]
[1673476725951,3.6434457,1351.5,1351.1,22.26926259]
[1673476726161,10.9766957,1351.5,1351.1,22.26926259]
[1673476726481,10.9766957,1351.5,1351.1,25.36753085]
[1673476727050,25.7751257,1351.5,1351.1,0.06518259]
[1673476727262,3.79766064,1351.4,1351.0,1.312]
[1673476727573,3.79766064,1351.4,1351.0,8.7138]
[1673476727574,14.8007,1351.3,1351.0,8.7138]
[1673476727792,14.8007,1351.3,1351.0,8.77898259]
[1673476727941,7.40031,1351.3,1351.0,8.77898259]
[1673476729234,10.45168506,1351.3,1351.0,8.77907259]
[1673476729450,10.45168506,1351.3,1351.0,16.18099259]
[1673476729851,10.45168506,1351.3,1351.0,1.37718259]
[1673476730079,3.05140506,1351.3,1351.0,8.71392]
[1673476730405,3.05140506,1351.3,1351.0,16.18102259]
[1673476730599,15.71370064,1351.4,1351.0,16.18102259]
[1673476730813,23.04782064,1351.4,1351.0,23.58294259]
[1673476730997,23.04782064,1351.4,1351.0,16.18102259]
[1673476731561,30.44794064,1351.4,1351.0,16.18102259]
[1673476731771,34.59700527,1351.4,1351.0,16.18102259]
[1673476731942,34.59700527,1351.4,1351.0,8.77910259]
[1673476732917,34.59700527,1351.4,1351.0,1.37718259]
[1673476733247,34.59700527,1351.4,1351.0,1.312]
[1673476734702,35.15210527,1351.4,1350.9,23.58363259]
[1673476734913,35.15210527,1351.4,1350.9,31.1222681]
[1673476735304,4.45,1351.2,1350.9,0.06518259]
[1673476735647,44.45103064,1351.2,1350.8,41.22067424]
[1673476735979,3.066,1351.3,1350.9,1.312]
[1673476736231,3.0,1351.3,1350.9,8.71417]
[1673476736356,17.80076,1351.3,1350.9,1.38451503]
[1673476736561,18.11775746,1351.3,1350.9,7.40235]
[1673476736771,25.51823746,1351.3,1350.9,7.47486503]
[1673476737023,32.91871746,1351.3,1350.9,0.07251503]
[1673476737239,25.51823746,1351.3,1350.8,46.33016488]
[1673476737556,25.51823746,1351.3,1350.8,53.73318488]
[1673476737771,10.71747746,1351.3,1350.8,59.27190061]
[1673476737989,18.11785746,1351.3,1350.8,55.47423997]
[1673476738150,25.51823746,1351.3,1350.8,55.47423997]
[1673476739324,41.1662781,1351.3,1350.8,40.66847997]
[1673476739496,41.1662781,1351.3,1350.8,42.53278424]
[1673476739714,41.1662781,1351.3,1350.8,49.93580424]
[1673476740178,18.9651381,1351.3,1350.8,49.93580424]
[1673476740399,26.3655081,1351.3,1350.8,49.93580424]
[1673476740702,25.8104081,1351.3,1350.8,55.83510391]
[1673476740913,22.01274746,1351.3,1350.8,55.83510391]
[1673476741128,14.61237746,1351.3,1350.8,55.83510391]
[1673476741289,22.01284746,1351.3,1350.8,55.83510391]
[1673476742294,29.41331746,1351.3,1350.8,55.83510391]
[1673476742444,29.41331746,1351.3,1350.9,20.38769039]
[1673476742655,29.41331746,1351.3,1350.9,27.86267542]
[1673476744352,29.41331746,1351.3,1350.9,22.27916503]
[1673476744798,24.96331746,1351.3,1350.9,22.27916503]
[1673476745012,3.0,1351.3,1350.9,22.27916503]
[1673476745204,3.0,1351.3,1350.9,27.37682567]
[1673476746669,14.6211,1351.4,1350.9,30.13173804]
[1673476746879,21.95486,1351.4,1350.9,27.37682567]
[1673476747436,14.5551,1351.4,1350.9,27.37682567]
[1673476747620,18.63828957,1351.4,1350.9,33.7856304]
[1673476747953,32.88264957,1351.4,1350.9,33.7856304]
[1673476748124,32.88264957,1351.4,1350.9,22.27916503]
[1673476748336,0.5551,1351.3,1350.9,14.87669503]
[1673476748687,22.75641,1351.3,1350.9,7.47446503]
[1673476748853,7.40028,1351.3,1350.9,14.87693503]
[1673476749062,4.53543796,1351.3,1350.9,22.27940503]
[1673476749483,11.93572796,1351.3,1350.9,14.87693503]
[1673476750356,4.53543796,1351.3,1350.9,22.27940503]
[1673476751342,4.53543796,1351.3,1350.9,25.03442224]
[1673476751483,4.53543796,1351.3,1350.9,22.27940503]
[1673476751701,11.93573796,1351.3,1350.9,25.03443634]
[1673476752158,11.93573796,1351.3,1350.9,26.13300877]
[1673476752481,4.53543796,1351.3,1350.9,25.03443634]
[1673476753288,4.53543796,1351.3,1351.0,16.6396752]
[1673476753495,4.53543796,1351.3,1351.0,22.27749503]
[1673476754122,37.95416957,1351.4,1351.0,22.27749503]
[1673476754335,18.08318957,1351.4,1351.0,22.27749503]
[1673476754963,18.08318957,1351.4,1351.0,25.03252634]
[1673476755477,7.9007,1351.5,1351.1,3.14848192]
[1673476755688,19.7484,1351.6,1351.2,22.20225]
[1673476755941,0.05,1351.6,1351.2,22.22476503]
[1673476756121,26.08472,1351.7,1351.2,22.27476503]
[1673476756325,2.608472,1351.6,1351.2,22.27476503]
[1673476758257,2.608472,1351.6,1351.2,22.27220621]
[1673476758469,10.007152,1351.6,1351.2,22.27220621]
[1673476758788,19.15072,1351.7,1351.2,23.58120621]
[1673476759100,3.0,1351.6,1351.2,23.58120621]
[1673476764546,3.0,1351.6,1351.2,22.27220621]
[1673476764980,17.0,1351.6,1351.2,22.27220621]
[1673476765212,7.794743,1351.6,1351.2,22.27220621]
[1673476765609,30.94743,1351.7,1351.2,22.27220621]
[1673476765848,14.7974,1351.6,1351.2,22.26920621]
[1673476766034,14.7974,1351.6,1351.2,22.27220621]
[1673476766247,7.39863,1351.6,1351.2,22.27220621]
[1673476768535,22.19617,1351.6,1351.2,14.87138621]
[1673476768766,22.19617,1351.6,1351.2,7.47066621]
[1673476768767,25.975364,1351.6,1351.2,7.47066621]
[1673476768979,25.975364,1351.6,1351.2,0.07251503]
[1673476769278,25.975364,1351.6,1351.1,45.76626567]
[1673476769516,25.975364,1351.6,1351.1,38.36523567]
[1673476769757,25.975364,1351.6,1351.1,38.36546567]
[1673476770138,25.975364,1351.6,1351.1,37.05346567]
[1673476770350,25.975364,1351.6,1351.1,49.82723024]
[1673476770559,25.975364,1351.6,1351.1,25.85443503]
[1673476772713,25.975364,1351.6,1351.1,33.25580503]
[1673476774176,25.975364,1351.6,1351.1,25.85443503]
[1673476775327,25.975364,1351.6,1351.1,33.25580503]
[1673476775518,25.975364,1351.6,1351.1,40.65717503]
[1673476775752,2.5975364,1351.5,1351.1,33.25580503]
[1673476776056,17.3964164,1351.5,1351.1,33.25580503]
[1673476776247,17.3964164,1351.5,1351.1,40.65717503]
[1673476777491,17.3964164,1351.5,1351.1,33.25580503]
[1673476777845,24.7958564,1351.5,1351.1,25.85443503]
[1673476778021,9.9969764,1351.5,1351.1,37.50826953]
[1673476778228,7.39944,1351.5,1351.1,44.90963953]
[1673476779330,14.79862,1351.5,1351.1,37.50826953]
[1673476779501,7.39918,1351.5,1351.1,44.90963953]
[1673476779716,7.39918,1351.5,1351.1,44.90608281]
[1673476780905,7.39918,1351.5,1351.1,37.50471281]
[1673476782145,10.0033914,1351.5,1351.1,33.25224831]
[1673476782362,1.3,1351.4,1351.1,18.44985831]
[1673476782585,22.20084,1351.3,1351.1,0.07251503]
[1673476782754,2.220084,1351.2,1350.9,27.31686503]
[1673476783184,17.021724,1351.2,1350.9,0.62781503]
[1673476783398,24.422544,1351.2,1350.8,32.42648746]
[1673476783601,24.422544,1351.2,1350.9,1.83676512]
[1673476783822,24.422544,1351.2,1350.8,35.18163514]
[1673476784040,2.4422544,1351.1,1350.8,33.52766271]
[1673476784233,2.4422544,1351.1,1350.8,0.07251503]
[1673476784600,2.4422544,1351.1,1350.7,8.50193243]
[1673476784789,2.4422544,1351.1,1350.8,1.83688326]
[1673476785320,2.4422544,1351.1,1350.7,15.97771746]
[1673476785508,11.84574464,1351.2,1350.8,14.80591]
[1673476785691,7.982084,1351.2,1350.8,7.47540503]
[1673476785899,7.982084,1351.2,1350.8,22.28144503]
[1673476786160,19.18059464,1351.2,1350.8,22.28144503]
[1673476786320,33.98226464,1351.2,1350.8,0.07251503]
[1673476786531,3.39822646,1351.1,1350.7,8.57433746]
[1673476786740,10.79985646,1351.1,1350.7,8.57433746]
[1673476786948,25.60311646,1351.1,1350.7,2.82766271]
[1673476787189,10.79990646,1351.1,1350.6,38.60234185]
[1673476787419,18.20158646,1351.1,1350.7,9.24042839]
[1673476787630,25.60326646,1351.1,1350.7,2.82766271]
[1673476787811,10.79990646,1351.1,1350.7,10.15865768]
[1673476788019,22.20442,1351.1,1350.7,2.82766271]
[1673476788231,22.20442,1351.1,1350.6,23.23911185]
[1673476788575,22.20061976,1351.1,1350.7,1.8369318]
[1673476790122,22.20061976,1351.1,1350.6,21.59125321]
[1673476790123,8.24766064,1351.0,1350.6,10.27557078]
[1673476790337,7.40199,1351.0,1350.7,14.80712]
[1673476790545,9.84371406,1351.0,1350.7,14.87963503]
[1673476791410,2.44172406,1351.0,1350.7,14.87963503]
[1673476791609,9.84366406,1351.0,1350.7,7.47607503]
[1673476791996,17.24560406,1351.0,1350.7,0.07251503]
[1673476792250,24.64754406,1351.0,1350.6,17.67987762]
[1673476792567,5.52222105,1350.9,1350.6,0.1166331]
[1673476792885,20.32796105,1350.9,1350.6,0.04411807]
[1673476793052,20.32796105,1350.9,1350.6,3.04411807]
[1673476793265,27.73097105,1350.9,1350.6,3.04411807]
[1673476793474,27.73097105,1350.9,1350.6,3.55778658]
[1673476795412,27.73097105,1350.9,1350.6,10.96187658]
[1673476795573,26.62869826,1350.9,1350.6,3.63030161]
[1673476795792,26.62869826,1350.9,1350.6,3.55778658]
[1673476797299,26.62869826,1350.9,1350.6,10.96188658]
[1673476797474,3.21826983,1350.8,1350.6,0.63030161]
[1673476797684,0.5554,1350.8,1350.6,22.77001658]
[1673476797911,15.36152,1350.8,1350.6,0.63030161]
[1673476798089,0.5554,1350.8,1350.6,0.55778658]
[1673476798460,15.36152,1350.8,1350.6,0.55778658]
[1673476799266,7.95842,1350.8,1350.6,0.55778658]
[1673476799487,0.5554,1350.8,1350.6,7.96184658]
[1673476799713,0.5554,1350.8,1350.6,8.03436161]
[1673476800090,19.10666376,1350.8,1350.6,0.63030161]
[1673476800449,26.50968376,1350.8,1350.6,0.55778658]
[1673476801407,40.50968376,1350.8,1350.6,0.55778658]
[1673476804498,33.10666376,1350.8,1350.6,0.55778658]
[1673476804769,32.55126376,1350.8,1350.6,0.55778658]
[1673476805315,39.95428376,1350.8,1350.6,0.55778658]
[1673476805486,26.76150838,1350.7,1350.6,0.55778658]
[1673476805669,24.24641863,1350.7,1350.6,0.55778658]
[1673476806320,41.65461687,1350.7,1350.6,0.55778658]
[1673476806511,41.88461687,1350.7,1350.6,0.55778658]
[1673476806948,37.57947927,1350.7,1350.6,0.55778658]
[1673476807562,37.57947927,1350.7,1350.6,0.04411807]
[1673476807788,38.33098067,1350.7,1350.6,0.04411807]
[1673476808006,42.63611827,1350.7,1350.6,0.04411807]
[1673476808187,42.63611827,1350.7,1350.6,8.07e-06]
[1673476808391,42.63611827,1350.7,1350.5,0.04556137]
[1673476808639,42.63611827,1350.7,1350.5,1.37e-06]
[1673476808640,53.81000247,1350.6,1350.5,1.37e-06]
[1673476808815,58.11514007,1350.6,1350.5,1.37e-06]
[1673476809022,58.86664147,1350.6,1350.5,1.37e-06]
[1673476809652,69.29164147,1350.6,1350.5,1.37e-06]
[1673476811274,75.19564147,1350.6,1350.4,9.51e-06]
[1673476811498,12.263,1350.4,1350.2,0.05562529]
[1673476811649,62.56843824,1350.3,1350.2,0.05562529]
[1673476812005,63.31993964,1350.3,1350.2,0.05562529]
[1673476812226,67.0651634,1350.3,1350.2,0.05562529]
[1673476814439,62.0085244,1350.3,1350.2,0.05562529]
[1673476814623,26.55466064,1350.3,1350.2,0.05562529]
[1673476814800,38.36618064,1350.3,1350.2,0.05562529]
[1673476815501,45.77194064,1350.3,1350.2,0.05562529]
[1673476815813,38.36618064,1350.3,1350.2,0.05562529]
[1673476816218,48.77194064,1350.3,1350.2,0.05562529]
[1673476816405,54.55290303,1350.3,1350.2,0.05562529]
[1673476819756,53.24590303,1350.3,1350.2,0.05562529]
[1673476820400,54.54590303,1350.3,1350.2,0.05562529]
[1673476821771,47.14014303,1350.3,1350.2,0.05562529]
[1673476822102,54.54590303,1350.3,1350.2,0.05562529]
[1673476824593,58.85104063,1350.3,1350.2,0.05562529]
[1673476824808,67.96904063,1350.3,1350.2,0.05562529]
[1673476825025,69.27614203,1350.3,1350.2,0.05562529]
[1673476825244,69.27614203,1350.3,1350.1,0.05562529]
[1673476825456,45.19794007,1350.2,1350.1,0.05562529]
[1673476825684,43.89794007,1350.2,1350.1,0.05562529]
[1673476827160,39.59280247,1350.2,1350.1,0.05562529]
[1673476827332,35.76963957,1350.2,1350.1,0.05562529]
[1673476828732,12.263,1350.0,1349.9,0.05472115]
[1673476828907,4.45,1349.8,1349.6,0.07251503]
[1673476829120,22.24766064,1349.7,1349.5,0.06445502]
[1673476829480,14.0,1349.7,1349.5,0.06445502]
[1673476829658,21.40923,1349.7,1349.5,0.06445502]
[1673476830788,14.0,1349.7,1349.5,0.06445502]
[1673476831024,21.40909,1349.7,1349.5,0.06445502]
[1673476831455,21.40909,1349.7,1349.5,0.18492858]
[1673476831782,4.516,1349.8,1349.5,7.47450502]
[1673476831940,4.45,1349.8,1349.5,7.54702005]
[1673476832157,4.45,1349.8,1349.5,10.30474741]
[1673476832571,4.45,1349.8,1349.6,0.38522418]
[1673476834042,11.85855,1349.8,1349.6,0.38522418]
[1673476834252,30.444293,1349.8,1349.6,0.38522418]
[1673476834461,8.24766064,1349.7,1349.6,0.38522418]
[1673476834720,15.65671064,1349.7,1349.6,0.38522418]
[1673476834927,8.24766064,1349.7,1349.6,0.38522418]
[1673476835620,4.45,1349.7,1349.6,0.38522418]
[1673476836354,4.45,1349.7,1349.6,0.33522418]